[Event "Championnat de France Universitaire Nan"]
[Site "Nancy, France"]
[Date "2020.02.09"]
[Round "8.1"]
[White "Gatineau, Yovann"]
[Black "Rakotomaharo, Fy Antenaina"]
[Result "0-1"]
[WhiteElo "2381"]
[BlackElo "2430"]
[PlyCount "66"]
[EventDate "2020.??.??"]
[TimeControl "15+5"]
[WhiteClock "0:00:40"]
[BlackClock "0:02:56"]

1. d4 {[%emt 0:00:00]} e6 {[%emt 0:00:03]} 2. c4 {[%emt 0:00:03]} Bb4+ {[%emt
0:00:01]} 3. Bd2 {[%emt 0:00:03]} a5 {[%emt 0:00:02]} 4. g3 {[%emt 0:00:02]} d5
{[%emt 0:00:04]} 5. Nf3 {[%emt 0:01:09]} dxc4 {[%emt 0:00:23]} 6. Qc2 {[%emt 0:
00:24]} Bxd2+ {[%emt 0:00:06]} 7. Nbxd2 {[%emt 0:00:04]} b5 {[%emt 0:00:00]} 8.
a4 {[%emt 0:00:02]} c6 {[%emt 0:00:01]} 9. Bg2 {[%emt 0:00:10]} Bb7 {[%emt 0:
00:10]} 10. O-O {[%emt 0:00:16]} Nf6 {[%emt 0:00:32]} 11. b3 {[%emt 0:01:27]}
cxb3 {[%emt 0:00:33]} 12. Nxb3 {[%emt 0:00:02]} Nbd7 {[%emt 0:00:02]} 13. Ne5 {
[%emt 0:00:11]} Nxe5 {[%emt 0:00:04]} 14. dxe5 {[%emt 0:00:02]} Nd5 {[%emt 0:
00:00]} 15. Nc5 {[%emt 0:00:07]} Qb6 {[%emt 0:00:10]} 16. Rfc1 {[%emt 0:00:56]}
Bc8 {[%emt 0:01:34]} 17. Be4 {[%emt 0:03:26]} h5 {[%emt 0:02:27]} 18. Qd2 {
[%emt 0:00:17]} Qd8 {[%emt 0:00:39]} 19. Qd3 {[%emt 0:01:54]} b4 {[%emt 0:00:
19]} 20. Ra2 {[%emt 0:02:16]} h4 {[%emt 0:00:35]} 21. f4 {[%emt 0:00:26]} Qb6 {
[%emt 0:00:25]} 22. Kg2 {[%emt 0:00:24]} h3+ {[%emt 0:02:34]} 23. Kf3 {[%emt 0:
00:19]} O-O {[%emt 0:01:37]} 24. Rd2 {[%emt 0:00:23]} f5 {[%emt 0:00:05]} 25.
exf6 {[%emt 0:00:02]} Rxf6 {[%emt 0:00:02]} 26. Qd4 {[%emt 0:00:12]} Qc7 {
[%emt 0:00:19]} 27. e3 {[%emt 0:00:23]} Qf7 {[%emt 0:00:31]} 28. Qe5 {[%emt 0:
00:10]} Bd7 {[%emt 0:00:34]} 29. g4 {[%emt 0:00:02]} Rf8 {[%emt 0:00:34]} 30.
g5 {[%emt 0:00:28]} Rf5 {[%emt 0:00:31]} 31. Bxf5 {[%emt 0:00:05]} exf5 {[%emt
0:00:05]} 32. g6 {[%emt 0:00:49]} Qxg6 {[%emt 0:01:13]} 33. Rxd5 {[%emt 0:00:
38]} Qg2# {[%emt 0:00:39]} 0-1

[Event "Championnat de France Universitaire Nan"]
[Site "Nancy, France"]
[Date "2020.02.09"]
[Round "8.2"]
[White "Msellek, Ilyass"]
[Black "Daeschler, Florian"]
[Result "1-0"]
[WhiteElo "2261"]
[BlackElo "2327"]
[PlyCount "67"]
[EventDate "2020.??.??"]
[TimeControl "15+5"]
[WhiteClock "0:00:49"]
[BlackClock "0:00:15"]

1. b3 {[%emt 0:00:18]} e5 {[%emt 0:00:09]} 2. Bb2 {[%emt 0:00:00]} Nc6 {[%emt
0:00:02]} 3. e3 {[%emt 0:00:00]} g6 {[%emt 0:00:04]} 4. Nf3 {[%emt 0:00:48]}
Bg7 {[%emt 0:00:02]} 5. c4 {[%emt 0:00:20]} Nge7 {[%emt 0:00:16]} 6. d4 {[%emt
0:00:09]} exd4 {[%emt 0:00:41]} 7. Nxd4 {[%emt 0:00:07]} Nxd4 {[%emt 0:00:19]}
8. Bxd4 {[%emt 0:00:04]} Bxd4 {[%emt 0:00:10]} 9. Qxd4 {[%emt 0:00:02]} O-O {
[%emt 0:00:01]} 10. Nc3 {[%emt 0:00:48]} Nf5 {[%emt 0:00:16]} 11. Qd2 {[%emt 0:
00:06]} Qf6 {[%emt 0:00:19]} 12. Rd1 {[%emt 0:00:11]} Ne7 {[%emt 0:00:34]} 13.
Be2 {[%emt 0:01:03]} d6 {[%emt 0:00:04]} 14. Nb5 {[%emt 0:00:27]} Be6 {[%emt 0:
01:25]} 15. Nxc7 {[%emt 0:00:11]} Rad8 {[%emt 0:00:00]} 16. O-O {[%emt 0:00:23]
} h5 {[%emt 0:02:25]} 17. Bf3 {[%emt 0:00:50]} Bg4 {[%emt 0:00:26]} 18. Bxg4 {
[%emt 0:00:19]} hxg4 {[%emt 0:00:01]} 19. Qd4 {[%emt 0:00:08]} Qg5 {[%emt 0:00:
03]} 20. Nb5 {[%emt 0:01:01]} Nf5 {[%emt 0:02:15]} 21. Qxa7 {[%emt 0:02:33]}
Kg7 {[%emt 0:00:44]} 22. Nd4 {[%emt 0:01:06]} Ne7 {[%emt 0:00:38]} 23. f4 {
[%emt 0:01:22]} Qh5 {[%emt 0:01:30]} 24. Qxb7 {[%emt 0:00:40]} Rde8 {[%emt 0:
01:06]} 25. g3 {[%emt 0:00:34]} d5 {[%emt 0:00:33]} 26. f5 {[%emt 0:01:19]}
gxf5 {[%emt 0:00:02]} 27. cxd5 {[%emt 0:00:08]} Rh8 {[%emt 0:00:53]} 28. Rf2 {
[%emt 0:00:10]} f4 {[%emt 0:00:03]} 29. exf4 {[%emt 0:00:27]} Nxd5 {[%emt 0:00:
52]} 30. f5 {[%emt 0:00:43]} Nc3 {[%emt 0:01:14]} 31. Rdf1 {[%emt 0:00:34]} Ne4
{[%emt 0:00:04]} 32. Ne6+ {[%emt 0:00:13]} Rxe6 {[%emt 0:00:03]} 33. fxe6 {
[%emt 0:00:02]} Nxf2 {[%emt 0:00:10]} 34. Rxf2 {[%emt 0:00:05]} 1-0

[Event "Championnat de France Universitaire Nan"]
[Site "Nancy, France"]
[Date "2020.02.09"]
[Round "8.3"]
[White "Budak, Rewi"]
[Black "Geronimi, Pierre-Francois"]
[Result "0-1"]
[WhiteElo "2079"]
[BlackElo "2070"]
[PlyCount "60"]
[EventDate "2020.??.??"]
[TimeControl "15+5"]
[WhiteClock "0:00:20"]
[BlackClock "0:00:55"]

1. e4 {[%emt 0:00:02]} g6 {[%emt 0:00:01]} 2. Nc3 {[%emt 0:00:16]} Bg7 {[%emt
0:00:00]} 3. f4 {[%emt 0:00:15]} c5 {[%emt 0:00:44]} 4. Nf3 {[%emt 0:00:03]}
Nc6 {[%emt 0:00:10]} 5. Bb5 {[%emt 0:00:11]} a6 {[%emt 0:01:04]} 6. Bxc6 {
[%emt 0:00:29]} dxc6 {[%emt 0:00:38]} 7. O-O {[%emt 0:00:10]} Nf6 {[%emt 0:00:
08]} 8. d3 {[%emt 0:00:45]} O-O {[%emt 0:00:08]} 9. Qe1 {[%emt 0:00:03]} c4 {
[%emt 0:02:09]} 10. dxc4 {[%emt 0:02:55]} Be6 {[%emt 0:00:59]} 11. Qe2 {[%emt
0:04:03]} Qb6+ {[%emt 0:00:45]} 12. Be3 {[%emt 0:01:58]} Qxb2 {[%emt 0:02:19]}
13. Bd4 {[%emt 0:01:16]} Qb4 {[%emt 0:00:58]} 14. Nd2 {[%emt 0:01:03]} Nd7 {
[%emt 0:03:16]} 15. Bxg7 {[%emt 0:00:21]} Kxg7 {[%emt 0:00:02]} 16. Rf3 {[%emt
0:01:28]} Bg4 {[%emt 0:00:22]} 17. Qe3 {[%emt 0:00:32]} Bxf3 {[%emt 0:00:04]}
18. Qxf3 {[%emt 0:00:01]} Nb6 {[%emt 0:00:26]} 19. Qe3 {[%emt 0:00:39]} Rfd8 {
[%emt 0:01:09]} 20. Rb1 {[%emt 0:00:03]} Nxc4 {[%emt 0:00:01]} 21. Nxc4 {[%emt
0:00:08]} Qxc4 {[%emt 0:00:01]} 22. Rxb7 {[%emt 0:00:03]} Rab8 {[%emt 0:00:18]}
23. Rxe7 {[%emt 0:00:02]} Rb2 {[%emt 0:00:15]} 24. e5 {[%emt 0:00:10]} Rxc2 {
[%emt 0:00:12]} 25. e6 {[%emt 0:00:06]} Qxc3 {[%emt 0:00:22]} 26. Rxf7+ {[%emt
0:00:03]} Kg8 {[%emt 0:00:02]} 27. Qe5 {[%emt 0:00:05]} Qxe5 {[%emt 0:00:05]}
28. fxe5 {[%emt 0:00:01]} Rd1+ {[%emt 0:00:02]} 29. Rf1 {[%emt 0:00:01]} Rxf1+
{[%emt 0:00:02]} 30. Kxf1 {[%emt 0:00:01]} Kf8 {[%emt 0:00:01]} 0-1

[Event "Championnat de France Universitaire Nan"]
[Site "Nancy, France"]
[Date "2020.02.09"]
[Round "8.4"]
[White "Albaric, Etienne"]
[Black "Ginovart, Axel"]
[Result "1-0"]
[WhiteElo "2258"]
[BlackElo "2164"]
[PlyCount "65"]
[EventDate "2020.??.??"]
[TimeControl "15+5"]
[WhiteClock "0:01:28"]
[BlackClock "0:00:11"]

1. e4 {[%emt 0:02:51]} c5 {[%emt 0:00:02]} 2. Nf3 {[%emt 0:00:01]} e6 {[%emt 0:
00:00]} 3. d4 {[%emt 0:00:00]} cxd4 4. Nxd4 {[%emt 0:00:00]} Nf6 {[%emt 0:00:
00]} 5. Nc3 {[%emt 0:00:01]} Nc6 {[%emt 0:00:00]} 6. Nxc6 {[%emt 0:00:00]} bxc6
{[%emt 0:00:00]} 7. e5 {[%emt 0:00:00]} Nd5 8. Ne4 Qc7 {[%emt 0:00:02]} 9. f4 {
[%emt 0:00:00]} Qb6 {[%emt 0:00:35]} 10. c4 {[%emt 0:00:07]} Ne3 {[%emt 0:00:
07]} 11. Qd3 {[%emt 0:00:38]} Nxf1 {[%emt 0:03:59]} 12. Rxf1 {[%emt 0:00:46]}
c5 {[%emt 0:00:16]} 13. f5 {[%emt 0:02:52]} Bb7 {[%emt 0:00:06]} 14. Bg5 {
[%emt 0:03:08]} Qa5+ {[%emt 0:05:11]} 15. Ke2 {[%emt 0:01:44]} Bxe4 {[%emt 0:
00:29]} 16. Qxe4 {[%emt 0:00:03]} Rb8 17. b3 {[%emt 0:00:44]} h6 {[%emt 0:01:
10]} 18. Bh4 {[%emt 0:02:21]} Qc7 {[%emt 0:01:03]} 19. Rad1 {[%emt 0:00:20]}
Qb7 {[%emt 0:01:59]} 20. Qg4 {[%emt 0:01:08]} Qc7 {[%emt 0:00:48]} 21. Kf2 {
[%emt 0:01:03]} Qxe5 {[%emt 0:00:20]} 22. Bg3 {[%emt 0:00:01]} Qb2+ {[%emt 0:
00:06]} 23. Kg1 {[%emt 0:00:00]} Rc8 {[%emt 0:00:37]} 24. Qe4 {[%emt 0:00:31]}
Be7 {[%emt 0:00:05]} 25. fxe6 {[%emt 0:00:05]} dxe6 {[%emt 0:00:01]} 26. Be5 {
[%emt 0:00:04]} Qxa2 {[%emt 0:00:06]} 27. Bxg7 {[%emt 0:00:06]} Rg8 {[%emt 0:
00:07]} 28. Qh7 {[%emt 0:00:03]} Rxg7 {[%emt 0:00:12]} 29. Qxg7 {[%emt 0:00:01]
} f6 {[%emt 0:00:01]} 30. Qg8+ {[%emt 0:00:05]} Bf8 31. Qxe6+ {[%emt 0:00:01]}
Be7 32. Qxc8+ {[%emt 0:00:03]} Kf7 33. Qb7 {[%emt 0:00:15]} 1-0

[Event "Championnat de France Universitaire Nan"]
[Site "Nancy, France"]
[Date "2020.02.09"]
[Round "8.5"]
[White "Defromont, Benjamin"]
[Black "Bedini, Lucas"]
[Result "1-0"]
[WhiteElo "2263"]
[BlackElo "1932"]
[PlyCount "139"]
[EventDate "2020.??.??"]
[TimeControl "15+5"]
[WhiteClock "0:00:29"]
[BlackClock "0:04:52"]

1. f4 {[%emt 0:00:15]} d5 {[%emt 0:00:08]} 2. Nf3 {[%emt 0:00:05]} Bg4 {[%emt
0:00:03]} 3. e3 {[%emt 0:00:30]} c5 {[%emt 0:00:20]} 4. b3 {[%emt 0:00:57]} Nc6
{[%emt 0:00:14]} 5. Bb2 {[%emt 0:00:04]} e6 {[%emt 0:00:01]} 6. h3 {[%emt 0:00:
10]} Bxf3 {[%emt 0:00:01]} 7. Qxf3 {[%emt 0:00:03]} Nf6 {[%emt 0:00:44]} 8. Bd3
{[%emt 0:06:41]} Qb6 {[%emt 0:01:38]} 9. Nc3 {[%emt 0:01:01]} Nb4 {[%emt 0:00:
56]} 10. Bb5+ {[%emt 0:02:03]} Kd8 {[%emt 0:00:31]} 11. O-O-O {[%emt 0:00:34]}
d4 {[%emt 0:00:12]} 12. Bc4 {[%emt 0:00:06]} Kc8 {[%emt 0:02:32]} 13. Na4 {
[%emt 0:00:42]} Qd8 {[%emt 0:00:36]} 14. a3 {[%emt 0:00:18]} Nbd5 {[%emt 0:01:
09]} 15. exd4 {[%emt 0:00:52]} cxd4 {[%emt 0:00:01]} 16. Bxd4 {[%emt 0:00:22]}
Bxa3+ {[%emt 0:00:00]} 17. Kb1 {[%emt 0:00:01]} Qa5 {[%emt 0:01:15]} 18. Nc3 {
[%emt 0:01:26]} Rd8 {[%emt 0:00:36]} 19. Rhe1 {[%emt 0:00:05]} Rb8 {[%emt 0:00:
29]} 20. Be5 {[%emt 0:00:12]} Bd6 {[%emt 0:00:06]} 21. Bxd6 {[%emt 0:00:12]}
Rxd6 {[%emt 0:00:02]} 22. f5 {[%emt 0:00:04]} b5 {[%emt 0:00:15]} 23. Bxd5 {
[%emt 0:00:02]} Ra6 {[%emt 0:00:08]} 24. Na4 {[%emt 0:00:11]} exd5 {[%emt 0:00:
13]} 25. Qc3+ {[%emt 0:00:05]} Qxc3 {[%emt 0:00:01]} 26. Nxc3 {[%emt 0:00:00]}
Kd7 {[%emt 0:00:10]} 27. g4 {[%emt 0:00:02]} Rc6 {[%emt 0:00:26]} 28. Re5 {
[%emt 0:00:08]} Rd6 {[%emt 0:00:05]} 29. d4 {[%emt 0:00:06]} b4 {[%emt 0:00:16]
} 30. Na4 {[%emt 0:00:03]} Ne4 {[%emt 0:00:00]} 31. Nc5+ {[%emt 0:00:06]} Kc6 {
[%emt 0:00:18]} 32. Nxe4 {[%emt 0:00:04]} dxe4 {[%emt 0:00:00]} 33. d5+ {[%emt
0:00:04]} Kc5 {[%emt 0:00:06]} 34. Rxe4 {[%emt 0:00:02]} Rb7 {[%emt 0:00:09]}
35. Rc4+ {[%emt 0:00:04]} Kb5 {[%emt 0:00:01]} 36. Rdd4 {[%emt 0:00:10]} a5 {
[%emt 0:00:00]} 37. Rc8 {[%emt 0:00:04]} Rbd7 {[%emt 0:00:15]} 38. Rf8 {[%emt
0:00:05]} Kc5 {[%emt 0:00:09]} 39. Rc4+ {[%emt 0:00:06]} Kxd5 {[%emt 0:00:02]}
40. Ra8 {[%emt 0:00:02]} Rc6 {[%emt 0:00:07]} 41. Rxa5+ {[%emt 0:00:03]} Kd6 {
[%emt 0:00:00]} 42. Rd4+ {[%emt 0:00:02]} Ke7 {[%emt 0:00:01]} 43. Re5+ {[%emt
0:00:04]} Kd8 {[%emt 0:00:01]} 44. Rxd7+ {[%emt 0:00:08]} Kxd7 {[%emt 0:00:01]}
45. Rb5 {[%emt 0:00:01]} Rc3 {[%emt 0:00:03]} 46. h4 {[%emt 0:00:06]} Rh3 {
[%emt 0:00:02]} 47. h5 {[%emt 0:00:02]} g6 {[%emt 0:00:01]} 48. fxg6 {[%emt 0:
00:03]} hxg6 {[%emt 0:00:02]} 49. hxg6 {[%emt 0:00:03]} fxg6 {[%emt 0:00:00]}
50. Rxb4 {[%emt 0:00:01]} Ke6 {[%emt 0:00:02]} 51. Rc4 {[%emt 0:00:04]} Kf6 {
[%emt 0:00:01]} 52. b4 {[%emt 0:00:04]} Ke5 {[%emt 0:00:09]} 53. c3 {[%emt 0:
00:08]} Rf3 {[%emt 0:00:00]} 54. Kb2 {[%emt 0:00:03]} g5 {[%emt 0:00:00]} 55.
Kb3 {[%emt 0:00:16]} Rf4 {[%emt 0:00:18]} 56. b5 {[%emt 0:00:03]} Rf7 {[%emt 0:
00:03]} 57. Kb4 {[%emt 0:00:04]} Kd6 {[%emt 0:00:08]} 58. b6 {[%emt 0:00:12]}
Rf1 {[%emt 0:00:04]} 59. Kb5 {[%emt 0:00:06]} Rb1+ {[%emt 0:00:01]} 60. Ka6 {
[%emt 0:00:01]} Ra1+ {[%emt 0:00:08]} 61. Kb7 {[%emt 0:00:01]} Rb1 {[%emt 0:00:
05]} 62. Ka7 {[%emt 0:00:05]} Ra1+ {[%emt 0:00:01]} 63. Kb8 {[%emt 0:00:02]}
Rb1 {[%emt 0:00:01]} 64. b7 {[%emt 0:00:00]} Kd7 {[%emt 0:00:08]} 65. Rc5 {
[%emt 0:00:13]} Ra1 {[%emt 0:00:08]} 66. Rxg5 {[%emt 0:00:03]} Ra3 {[%emt 0:00:
03]} 67. Rc5 {[%emt 0:00:02]} Ra6 {[%emt 0:00:05]} 68. g5 {[%emt 0:00:04]} Kd6
{[%emt 0:00:01]} 69. Rf5 {[%emt 0:00:07]} Kd7 {[%emt 0:00:03]} 70. Rf6 {[%emt
0:00:02]} 1-0

[Event "Championnat de France Universitaire Nan"]
[Site "Nancy, France"]
[Date "2020.02.09"]
[Round "8.6"]
[White "Buttard, Axel"]
[Black "Pak, Alexander"]
[Result "1-0"]
[WhiteElo "1905"]
[BlackElo "2183"]
[PlyCount "131"]
[EventDate "2020.??.??"]
[TimeControl "15+5"]
[WhiteClock "0:00:37"]
[BlackClock "0:01:31"]

1. d4 {[%emt 0:00:02]} d5 {[%emt 0:00:01]} 2. Bf4 {[%emt 0:00:02]} Nf6 {[%emt
0:00:02]} 3. e3 {[%emt 0:00:03]} Bf5 {[%emt 0:00:02]} 4. c4 {[%emt 0:00:18]} c6
{[%emt 0:00:06]} 5. Nc3 {[%emt 0:00:54]} e6 {[%emt 0:00:03]} 6. Qb3 {[%emt 0:
00:11]} Qb6 {[%emt 0:00:18]} 7. c5 {[%emt 0:01:04]} Qxb3 {[%emt 0:00:09]} 8.
axb3 {[%emt 0:00:02]} Nbd7 {[%emt 0:00:49]} 9. Nf3 {[%emt 0:01:36]} Nh5 {[%emt
0:00:54]} 10. Bg5 {[%emt 0:01:11]} h6 {[%emt 0:00:13]} 11. Bh4 {[%emt 0:00:04]}
g5 {[%emt 0:00:36]} 12. Bg3 {[%emt 0:00:06]} Nxg3 {[%emt 0:00:01]} 13. hxg3 {
[%emt 0:00:00]} Bg7 {[%emt 0:00:03]} 14. Be2 {[%emt 0:01:05]} Ke7 {[%emt 0:00:
02]} 15. b4 {[%emt 0:01:26]} e5 {[%emt 0:00:12]} 16. dxe5 {[%emt 0:01:06]} Nxe5
{[%emt 0:00:35]} 17. Nd4 {[%emt 0:00:13]} Bd7 {[%emt 0:02:07]} 18. b5 {[%emt 0:
01:13]} Rhc8 {[%emt 0:02:53]} 19. bxc6 {[%emt 0:01:21]} bxc6 {[%emt 0:00:22]}
20. Kd2 {[%emt 0:01:12]} a5 {[%emt 0:00:41]} 21. Ra2 {[%emt 0:01:06]} Rc7 {
[%emt 0:02:23]} 22. Rha1 {[%emt 0:00:08]} Rb8 {[%emt 0:00:21]} 23. Kc1 {[%emt
0:01:16]} Rcb7 {[%emt 0:00:30]} 24. Nd1 {[%emt 0:00:06]} Nc4 {[%emt 0:02:18]}
25. Bxc4 {[%emt 0:00:19]} dxc4 {[%emt 0:00:02]} 26. Rxa5 {[%emt 0:00:08]} Bxd4
{[%emt 0:00:14]} 27. exd4 {[%emt 0:00:01]} Kf6 {[%emt 0:00:15]} 28. Ra7 {[%emt
0:00:15]} Be6 {[%emt 0:00:14]} 29. Rxb7 {[%emt 0:00:04]} Rxb7 {[%emt 0:00:01]}
30. Nc3 {[%emt 0:00:05]} Rd7 {[%emt 0:00:07]} 31. Ne2 {[%emt 0:00:13]} Bd5 {
[%emt 0:00:05]} 32. f3 {[%emt 0:00:18]} g4 {[%emt 0:00:14]} 33. Nf4 {[%emt 0:
00:23]} gxf3 {[%emt 0:00:32]} 34. Nxd5+ {[%emt 0:00:08]} Rxd5 {[%emt 0:00:02]}
35. gxf3 {[%emt 0:00:01]} Rxd4 {[%emt 0:00:09]} 36. Kc2 {[%emt 0:00:03]} Rd3 {
[%emt 0:00:07]} 37. Rf1 {[%emt 0:00:05]} Ke5 {[%emt 0:00:04]} 38. g4 {[%emt 0:
00:11]} Kf4 {[%emt 0:00:03]} 39. Rh1 {[%emt 0:00:02]} Rxf3 {[%emt 0:00:12]} 40.
Rxh6 {[%emt 0:00:02]} Kxg4 {[%emt 0:00:16]} 41. Rxc6 {[%emt 0:00:03]} Re3 {
[%emt 0:00:05]} 42. Rf6 {[%emt 0:00:07]} Re7 {[%emt 0:00:02]} 43. Kc3 {[%emt 0:
00:04]} Kg5 {[%emt 0:00:01]} 44. Rf2 {[%emt 0:00:03]} Re4 {[%emt 0:00:05]} 45.
Rxf7 {[%emt 0:00:06]} Kg6 {[%emt 0:00:06]} 46. Rf2 {[%emt 0:00:03]} Kg5 {[%emt
0:00:04]} 47. Rd2 {[%emt 0:00:08]} Kf6 {[%emt 0:00:02]} 48. Rd4 {[%emt 0:00:02]
} Re2 {[%emt 0:00:04]} 49. Rxc4 {[%emt 0:00:04]} Ke6 {[%emt 0:00:02]} 50. Rd4 {
[%emt 0:00:04]} Ke5 {[%emt 0:00:03]} 51. Rd1 {[%emt 0:00:02]} Re3+ {[%emt 0:00:
02]} 52. Kc4 {[%emt 0:00:04]} Re2 {[%emt 0:00:02]} 53. b4 {[%emt 0:00:03]} Rc2+
{[%emt 0:00:03]} 54. Kb5 {[%emt 0:00:01]} Ke6 {[%emt 0:00:02]} 55. Rd6+ {[%emt
0:00:02]} Ke7 {[%emt 0:00:01]} 56. Kb6 {[%emt 0:00:04]} Rc4 {[%emt 0:00:02]}
57. b5 {[%emt 0:00:05]} Rc1 {[%emt 0:00:02]} 58. Rd2 {[%emt 0:00:07]} Ke6 {
[%emt 0:00:01]} 59. c6 {[%emt 0:00:01]} Ke7 {[%emt 0:00:01]} 60. Rd7+ {[%emt 0:
00:03]} Ke6 {[%emt 0:00:01]} 61. Kb7 {[%emt 0:00:04]} Rb1 {[%emt 0:00:01]} 62.
b6 {[%emt 0:00:02]} Rc1 {[%emt 0:00:01]} 63. Rd2 {[%emt 0:00:05]} Ke7 {[%emt 0:
00:02]} 64. c7 {[%emt 0:00:05]} Ke6 {[%emt 0:00:02]} 65. Rd8 {[%emt 0:00:03]}
Ke7 {[%emt 0:00:01]} 66. c8=Q {[%emt 0:00:04]} 1-0

[Event "Championnat de France Universitaire Nan"]
[Site "Nancy, France"]
[Date "2020.02.09"]
[Round "8.7"]
[White "Marchais, Antoine"]
[Black "Battesti, Saveriu"]
[Result "1-0"]
[WhiteElo "2010"]
[BlackElo "2012"]
[PlyCount "73"]
[EventDate "2020.??.??"]
[TimeControl "15+5"]
[WhiteClock "0:06:32"]
[BlackClock "0:02:19"]

1. e4 {[%emt 0:00:00]} c5 {[%emt 0:00:02]} 2. Nc3 {[%emt 0:00:00]} Nc6 {[%emt
0:00:02]} 3. g3 {[%emt 0:00:02]} e6 {[%emt 0:00:03]} 4. Bg2 {[%emt 0:00:03]} a6
{[%emt 0:00:06]} 5. d3 {[%emt 0:00:03]} b5 {[%emt 0:00:09]} 6. Be3 {[%emt 0:00:
02]} Bb7 {[%emt 0:00:07]} 7. Qd2 {[%emt 0:00:09]} Qc7 {[%emt 0:00:16]} 8. f4 {
[%emt 0:00:02]} Nf6 {[%emt 0:00:06]} 9. Nce2 {[%emt 0:00:16]} Ng4 {[%emt 0:00:
07]} 10. Nf3 {[%emt 0:00:07]} Nxe3 {[%emt 0:00:03]} 11. Qxe3 {[%emt 0:00:01]}
Be7 {[%emt 0:00:07]} 12. O-O {[%emt 0:00:05]} O-O {[%emt 0:00:06]} 13. c3 {
[%emt 0:00:27]} d5 {[%emt 0:00:14]} 14. exd5 {[%emt 0:00:02]} exd5 {[%emt 0:00:
04]} 15. d4 {[%emt 0:00:01]} Rfe8 {[%emt 0:00:35]} 16. Qf2 {[%emt 0:00:02]}
cxd4 {[%emt 0:00:59]} 17. Nexd4 {[%emt 0:00:01]} Bc5 {[%emt 0:00:43]} 18. Rfe1
{[%emt 0:00:11]} Re4 {[%emt 0:01:02]} 19. Kf1 {[%emt 0:01:00]} Rae8 {[%emt 0:
00:20]} 20. Qd2 {[%emt 0:00:07]} h6 {[%emt 0:01:24]} 21. Nxc6 {[%emt 0:00:05]}
Qxc6 {[%emt 0:00:22]} 22. Ne5 {[%emt 0:00:12]} Rxe1+ {[%emt 0:01:13]} 23. Rxe1
{[%emt 0:00:00]} Qd6 {[%emt 0:00:50]} 24. Nd3 {[%emt 0:03:00]} Rxe1+ {[%emt 0:
01:01]} 25. Qxe1 {[%emt 0:00:02]} Bb6 {[%emt 0:00:09]} 26. Qe8+ {[%emt 0:00:11]
} Qf8 {[%emt 0:00:03]} 27. Qd7 {[%emt 0:00:24]} Qa8 {[%emt 0:00:18]} 28. Ne5 {
[%emt 0:00:05]} f6 {[%emt 0:01:16]} 29. Qf7+ {[%emt 0:00:00]} Kh7 {[%emt 0:00:
38]} 30. Nd7 {[%emt 0:00:01]} Qd8 {[%emt 0:01:26]} 31. Bh3 {[%emt 0:00:43]} Bc8
{[%emt 0:00:36]} 32. Bf5+ {[%emt 0:00:05]} Kh8 {[%emt 0:00:03]} 33. Qg6 {[%emt
0:01:19]} Kg8 {[%emt 0:00:36]} 34. Be6+ {[%emt 0:02:32]} Kh8 {[%emt 0:00:02]}
35. Nxf6 {[%emt 0:00:05]} Qxf6 {[%emt 0:00:39]} 36. Qe8+ {[%emt 0:00:01]} Kh7 {
[%emt 0:00:03]} 37. Bg8+ {[%emt 0:00:00]} 1-0

[Event "Championnat de France Universitaire Nan"]
[Site "Nancy, France"]
[Date "2020.02.09"]
[Round "8.8"]
[White "Kouoi, Bertrand"]
[Black "Kajganic, Fabien"]
[Result "0-1"]
[WhiteElo "2055"]
[BlackElo "1908"]
[PlyCount "81"]
[EventDate "2020.??.??"]
[TimeControl "15+5"]
[WhiteClock "0:00:10"]
[BlackClock "0:02:16"]

1. e4 {[%emt 0:00:02]} d6 {[%emt 0:00:02]} 2. d4 {[%emt 0:00:01]} g6 {[%emt 0:
00:02]} 3. Nc3 {[%emt 0:00:03]} Bg7 {[%emt 0:00:05]} 4. f4 {[%emt 0:00:02]} Nf6
{[%emt 0:00:35]} 5. Nf3 {[%emt 0:00:01]} c6 {[%emt 0:00:13]} 6. Bd3 {[%emt 0:
00:30]} Nbd7 {[%emt 0:00:18]} 7. O-O {[%emt 0:00:02]} O-O {[%emt 0:00:15]} 8.
h3 {[%emt 0:00:31]} e5 {[%emt 0:00:08]} 9. dxe5 {[%emt 0:00:15]} dxe5 {[%emt 0:
00:01]} 10. f5 {[%emt 0:01:38]} Qc7 {[%emt 0:00:58]} 11. Be3 {[%emt 0:00:23]}
Re8 {[%emt 0:00:51]} 12. Qe1 gxf5 {[%emt 0:00:00]} 13. Qh4 {[%emt 0:01:45]} f4
{[%emt 0:00:08]} 14. Bc1 {[%emt 0:02:06]} Nf8 {[%emt 0:00:06]} 15. Kh2 {[%emt
0:00:40]} Ng6 {[%emt 0:00:15]} 16. Qf2 {[%emt 0:00:10]} Nh5 {[%emt 0:00:23]}
17. Ne2 {[%emt 0:00:14]} Qb6 {[%emt 0:00:30]} 18. Qe1 {[%emt 0:00:23]} Be6 {
[%emt 0:01:12]} 19. b3 {[%emt 0:00:01]} Rad8 {[%emt 0:00:13]} 20. Bb2 {[%emt 0:
00:42]} Qc7 {[%emt 0:01:29]} 21. Qf2 {[%emt 0:01:30]} b6 {[%emt 0:00:21]} 22.
Ng5 {[%emt 0:01:05]} Bf6 {[%emt 0:00:44]} 23. Nf3 {[%emt 0:01:18]} Qe7 {[%emt
0:00:25]} 24. Rad1 {[%emt 0:00:18]} Kh8 {[%emt 0:00:45]} 25. c4 {[%emt 0:01:18]
} Rg8 {[%emt 0:00:27]} 26. Bc2 {[%emt 0:00:01]} Rxd1 {[%emt 0:00:32]} 27. Rxd1
{[%emt 0:00:00]} Rd8 {[%emt 0:00:18]} 28. Qe1 {[%emt 0:00:09]} Rxd1 {[%emt 0:
01:21]} 29. Qxd1 {[%emt 0:00:10]} Qc5 {[%emt 0:00:17]} 30. Qe1 {[%emt 0:00:29]}
b5 {[%emt 0:00:17]} 31. Bd3 {[%emt 0:00:47]} bxc4 {[%emt 0:00:19]} 32. Bxc4 {
[%emt 0:00:07]} Bxc4 {[%emt 0:00:09]} 33. Qc3 {[%emt 0:00:05]} Qf2 {[%emt 0:00:
46]} 34. Qxc4 {[%emt 0:00:02]} Ng3 {[%emt 0:00:20]} 35. Nxg3 {[%emt 0:00:11]}
fxg3+ {[%emt 0:00:01]} 36. Kh1 {[%emt 0:00:01]} Qxb2 {[%emt 0:00:07]} 37. Qxf7
{[%emt 0:00:02]} Qc1+ {[%emt 0:00:04]} 38. Ng1 {[%emt 0:00:01]} Bg5 {[%emt 0:
00:53]} 39. Qe8+ {[%emt 0:00:18]} Kg7 {[%emt 0:00:01]} 40. Qd7+ {[%emt 0:00:01]
} Kh6 {[%emt 0:00:03]} 41. h4 {[%emt 0:00:10]} 0-1